bitfinex-derivatives/quotes_ETHF0:USTF0_20250830
["timestamp","ask_amount","ask_price","bid_price","bid_amount"]
[1756520210882,0.00543606,4307.2,4307.0,1.7805]
[1756520211079,1.20283606,4307.2,4307.1,3.022]
[1756520211277,3.12243606,4307.2,4307.1,3.276]
[1756520211476,3.12243606,4307.2,4307.1,3.022]
[1756520211784,3.12243606,4307.2,4307.1,3.276]
[1756520212081,1.20283606,4307.2,4307.1,3.276]
[1756520212282,1.20283606,4307.2,4307.1,3.022]
[1756520212477,1.20283606,4307.2,4307.1,3.276]
[1756520212685,3.12243606,4307.2,4307.1,3.276]
[1756520213185,0.00543606,4307.2,4307.1,3.276]
[1756520213685,3.12243606,4307.2,4307.1,3.276]
[1756520214186,1.1974,4306.5,4306.0,1.7805]
[1756520214380,1.9196,4307.1,4306.1,1.4955]
[1756520214579,3.117,4306.2,4306.1,3.276]
[1756520215182,1.1974,4306.2,4306.1,3.276]
[1756520215585,3.117,4306.2,4306.1,3.022]
[1756520215888,3.117,4306.2,4306.1,1.4955]
[1756520216481,3.117,4306.2,4306.1,3.276]
[1756520217485,3.117,4306.2,4306.1,1.2415]
[1756520217785,3.117,4306.2,4306.1,1.4955]
[1756520218391,3.117,4306.2,4306.1,1.2415]
[1756520218587,3.117,4306.2,4306.1,1.4945]
[1756520219288,8.4052,4306.2,4305.3,3.2078]
[1756520219490,1.9196,4305.3,4305.1,1.7805]
[1756520219686,3.117,4305.3,4305.2,0.253]
[1756520219883,3.117,4305.0,4304.8,3.2078]
[1756520220186,3.117,4305.0,4304.9,3.275]
[1756520220791,3.117,4305.0,4304.9,3.022]
[1756520220990,3.117,4305.0,4304.9,3.275]
[1756520221191,1.9196,4305.4,4304.9,3.275]
[1756520221393,3.2078,4305.6,4304.9,0.253]
[1756520221593,1.1974,4305.5,4305.4,1.2415]
[1756520221796,3.117,4305.5,4305.4,1.4945]
[1756520221994,1.1974,4305.5,4305.2,1.7805]
[1756520222191,1.1974,4305.4,4305.3,0.253]
[1756520222393,3.117,4305.4,4305.3,0.253]
[1756520222892,1.1974,4303.4,4303.3,4.4493]
[1756520223087,3.2078,4304.3,4303.6,3.022]
[1756520223288,1.9196,4304.2,4303.8,1.7805]
[1756520223492,1.9196,4304.5,4303.8,1.7805]
[1756520224792,3.117,4304.5,4304.4,1.2415]
[1756520224998,3.117,4304.5,4304.4,3.275]
[1756520225289,3.2078,4304.9,4304.4,1.4945]
[1756520225490,3.117,4304.8,4304.7,3.022]
[1756520225796,3.117,4304.8,4304.7,3.275]
[1756520226488,1.9196,4305.2,4304.8,1.7805]
[1756520226691,3.2078,4305.5,4305.3,1.2415]
[1756520226692,3.117,4305.4,4305.3,1.2415]
[1756520226893,3.117,4305.4,4305.3,3.275]
[1756520227997,3.0017,4306.2,4306.1,3.0872]
[1756520228191,3.0017,4306.2,4306.1,0.253]
[1756520228394,3.0017,4306.2,4306.1,3.3402]
[1756520228593,3.2078,4306.9,4306.1,3.3402]
[1756520228594,1.8089,4306.8,4306.1,7.3402]
[1756520228799,1.8089,4306.8,4306.2,1.8249]
[1756520228999,3.0017,4306.4,4306.3,3.3402]
[1756520229206,1.1928,4306.4,4306.3,3.3402]
[1756520229498,3.0017,4306.7,4306.6,1.2623]
[1756520229690,3.0017,4306.7,4306.6,3.3402]
[1756520230292,3.0017,4306.7,4306.6,3.0872]
[1756520230493,3.0017,4306.7,4306.6,3.3402]
[1756520230890,1.1928,4306.7,4306.6,3.0872]
[1756520231095,3.0017,4306.7,4306.6,0.253]
[1756520231897,3.2078,4306.9,4306.6,1.5153]
[1756520232103,0.00543606,4307.2,4306.8,3.0872]
[1756520232305,3.0017,4306.9,4306.8,3.0872]
[1756520232598,1.1928,4306.9,4306.8,3.3402]
[1756520232803,3.0017,4306.9,4306.8,3.3402]
[1756520233606,3.00713606,4307.2,4307.1,3.0872]
[1756520233807,3.00713606,4307.2,4307.1,3.3402]
[1756520236405,1.19823606,4307.2,4307.1,3.3402]
[1756520236607,0.00543606,4307.2,4307.1,3.3402]
[1756520240109,0.00543606,4307.2,4307.1,7.57237]
[1756520240706,1.8089,4308.3,4307.9,3.0872]
[1756520240902,3.0017,4308.1,4308.0,3.3402]
[1756520241210,1.1928,4308.1,4308.0,3.3402]
[1756520242109,3.0017,4308.1,4307.5,1.8249]
[1756520242310,1.1928,4307.5,4307.4,3.2078]
[1756520242500,3.0017,4307.5,4307.4,6.548]
[1756520242703,1.1928,4307.5,4307.4,6.548]
[1756520242899,1.8089,4307.8,4307.4,6.548]
[1756520243101,1.8089,4308.6,4307.8,1.8249]
[1756520243313,1.8089,4308.6,4307.9,0.253]
[1756520243512,1.1928,4308.0,4307.9,1.5153]
[1756520243705,1.1928,4308.0,4307.9,3.3402]
[1756520243901,1.8089,4308.2,4307.9,1.5153]
[1756520244102,3.0017,4308.6,4308.5,1.2623]
[1756520244414,3.0017,4308.6,4308.5,1.5153]
[1756520245109,3.0017,4308.6,4308.5,3.3402]
[1756520245310,3.2078,4308.7,4308.6,3.0872]
[1756520245513,6.2095,4308.7,4308.6,3.0872]
[1756520245712,6.2095,4308.7,4308.6,1.2623]
[1756520245909,6.2095,4308.7,4308.6,3.0872]
[1756520246116,6.2095,4308.7,4308.6,1.2623]
[1756520246307,6.2095,4308.7,4308.6,3.0872]
[1756520247711,1.1928,4308.1,4308.0,3.0872]
[1756520247915,3.0017,4308.1,4308.0,3.3392]
[1756520248110,1.8089,4308.6,4308.0,1.5143]
[1756520248309,3.0017,4308.6,4308.5,1.2623]
[1756520248510,3.0017,4308.6,4308.5,1.5143]
[1756520250416,3.0017,4308.6,4308.5,1.2623]
[1756520250613,3.0017,4308.6,4308.5,1.5143]
[1756520251522,3.2078,4308.7,4308.5,1.5143]
[1756520251716,6.2095,4309.3,4309.2,1.2623]
[1756520252018,6.2095,4309.3,4309.2,3.3392]
[1756520252219,6.2095,4309.3,4309.2,1.5143]
[1756520252513,6.2095,4309.3,4309.2,0.252]
[1756520252514,3.0017,4309.3,4309.2,0.252]
[1756520253312,1.8089,4309.2,4308.6,1.8249]
[1756520253509,3.0017,4308.9,4308.8,3.0872]
[1756520253818,1.1928,4308.6,4308.5,6.295]
[1756520254115,1.1928,4308.6,4308.5,6.547]
[1756520254315,1.1928,4308.6,4308.5,6.295]
[1756520254534,3.0017,4308.6,4308.5,6.547]
[1756520255321,1.8089,4308.9,4308.5,6.547]
[1756520255523,0.23206001,4309.7,4308.5,4.7221]
[1756520255722,1.8089,4309.6,4308.6,1.8249]
[1756520256322,1.1928,4308.8,4308.7,1.5143]
[1756520256522,1.1928,4308.8,4308.7,3.3392]
[1756520256922,1.1928,4308.8,4307.9,1.7673]
[1756520257117,1.1928,4308.8,4308.0,0.252]
[1756520257421,1.797,4308.7,4308.0,0.252]
[1756520257720,2.9734,4308.2,4308.1,3.0365]
[1756520257922,1.797,4309.2,4308.2,1.7673]
[1756520258122,1.1764,4308.4,4308.3,1.5212]
[1756520258421,2.9734,4308.4,4308.3,3.2885]
[1756520259124,1.797,4309.2,4308.4,1.7673]
[1756520259423,2.9734,4308.5,4308.4,3.0365]
[1756520259722,2.9734,4308.5,4308.4,3.2885]
[1756520260216,1.1764,4308.5,4308.4,3.2885]
[1756520260416,3.2078,4309.3,4308.4,1.5212]
[1756520260721,1.797,4309.2,4308.5,1.7673]
[1756520261124,1.1764,4308.7,4308.6,3.2885]
[1756520261321,1.797,4309.1,4309.0,3.0365]
[1756520261322,2.9734,4309.1,4309.0,3.0365]
[1756520261517,3.2078,4309.3,4309.0,3.2885]
[1756520261725,10.91024005,4311.7,4309.0,3.2885]
[1756520261726,2.9734,4310.0,4309.9,1.2692]
[1756520262031,1.797,4309.9,4309.0,1.7673]
[1756520262217,1.797,4309.6,4309.1,0.252]
[1756520262418,2.9734,4309.5,4309.4,1.2692]
[1756520262618,2.9734,4309.5,4309.4,3.0365]
[1756520262819,1.797,4310.1,4309.5,1.7673]
[1756520263024,2.9734,4310.1,4310.0,1.2692]
[1756520263224,2.9734,4310.1,4310.0,1.5212]
[1756520263621,2.9734,4310.1,4310.0,0.252]
[1756520265125,2.9734,4310.1,4309.5,1.7673]
[1756520265319,1.1764,4310.0,4309.9,3.0365]
[1756520265525,2.9734,4310.0,4309.9,3.2885]
[1756520271428,2.9734,4310.0,4309.9,3.0365]
[1756520271628,2.9734,4310.0,4309.9,3.2885]
[1756520272528,1.797,4310.4,4309.9,1.5212]
[1756520272824,1.797,4310.4,4310.1,1.2692]
[1756520273325,4.8734,4310.2,4310.1,3.0365]
[1756520273727,1.99524005,4312.3,4311.4,1.7673]
[1756520273932,1.99524005,4312.3,4311.3,1.2692]
[1756520273933,0.62521064,4311.8,4311.7,1.7673]
[1756520274134,1.1764,4311.8,4311.7,3.2885]
[1756520274427,0.239,4313.8,4311.7,1.5212]
[1756520274625,1.1764,4312.3,4312.2,6.2443]
[1756520274827,1.1764,4312.3,4312.2,6.4963]
[1756520275025,1.1764,4312.3,4312.2,6.4953]
[1756520275726,3.2078,4313.2,4312.2,6.4953]
[1756520275925,3.2078,4313.2,4312.2,4.728]
[1756520276137,1.797,4313.1,4312.3,1.7673]
[1756520276325,1.797,4313.1,4312.5,1.7673]
[1756520276525,2.9734,4313.0,4312.9,1.2692]
[1756520276726,2.9734,4313.0,4312.9,1.5202]
[1756520277125,2.9734,4313.0,4312.9,1.2692]
[1756520277427,2.9734,4313.0,4312.9,1.5202]
[1756520277624,2.9734,4313.0,4312.9,3.2875]
[1756520279536,1.797,4312.9,4312.7,3.2078]
[1756520279836,2.9734,4312.8,4312.7,6.2443]
[1756520280032,1.797,4313.1,4312.7,6.4953]
[1756520280233,3.2078,4313.7,4312.7,6.4953]
[1756520280234,1.797,4313.6,4312.8,1.7673]
[1756520280538,1.797,4313.6,4312.9,0.251]
[1756520280738,3.2078,4313.7,4313.0,3.0365]
[1756520280739,1.1764,4313.1,4313.0,3.0365]
[1756520280931,2.9734,4313.1,4313.0,3.0365]
[1756520281529,1.797,4313.5,4313.0,3.0365]
[1756520281734,3.2078,4313.7,4313.1,1.5202]
[1756520281735,1.1764,4313.2,4313.1,1.5202]
[1756520281935,2.9734,4313.2,4313.1,3.2875]
[1756520282531,2.9734,4313.2,4313.1,0.251]
[1756520282739,2.9734,4312.8,4312.7,6.2443]
[1756520282942,2.9734,4312.8,4312.7,6.4953]
[1756520283235,3.2078,4313.7,4312.7,4.728]
[1756520283441,1.797,4313.6,4312.8,1.7673]
[1756520283642,1.797,4313.6,4313.0,1.7673]
[1756520283841,2.9734,4313.2,4313.1,3.2875]
[1756520284243,2.9734,4313.2,4313.1,3.0365]
[1756520284743,2.9734,4313.2,4313.1,3.2875]
[1756520286137,3.2078,4313.7,4313.1,1.5202]
[1756520286338,1.1764,4313.9,4313.8,1.2692]
[1756520286636,3.2078,4314.4,4313.8,3.2875]
[1756520286843,6.1342,4314.4,4314.3,3.144]
[1756520287045,1.2332,4313.7,4313.2,3.2078]
[1756520287341,3.2078,4314.4,4313.3,3.2832]
[1756520287533,1.75,4314.3,4313.3,3.2832]
[1756520287838,1.2332,4313.5,4313.4,1.4084]
[1756520288032,2.9832,4313.5,4313.4,3.2832]
[1756520288237,3.2078,4314.4,4313.4,3.0322]
[1756520288434,1.75,4314.3,4313.5,2.1258]
[1756520288647,3.2078,4314.4,4313.5,2.1258]
[1756520288648,2.9832,4313.6,4313.5,3.0322]
[1756520289142,2.9832,4313.6,4313.5,3.2832]
[1756520289544,2.9832,4313.6,4313.5,1.4084]
[1756520289943,1.75,4314.3,4313.6,1.8748]
[1756520290144,2.9832,4313.8,4313.7,3.2832]
[1756520290344,2.9832,4313.8,4313.7,1.4084]
[1756520290742,2.9832,4313.8,4313.3,1.8748]
[1756520291044,2.9832,4313.5,4313.4,3.2832]
[1756520291243,2.9832,4313.5,4313.4,3.0322]
[1756520291441,2.9832,4313.5,4313.4,3.2832]
[1756520292147,2.9832,4313.5,4313.4,1.4084]
[1756520292548,2.9832,4313.5,4313.4,3.0322]
[1756520292746,2.9832,4313.5,4313.4,3.2832]
[1756520293748,2.9832,4313.6,4313.5,3.0322]
[1756520294356,1.75,4314.3,4313.5,3.2832]
[1756520294649,1.75,4314.3,4313.6,1.8748]
[1756520294837,3.2078,4314.4,4313.2,3.62505]
[1756520294838,2.9832,4313.8,4313.7,3.2832]
[1756520296246,1.2332,4313.8,4313.7,0.251]
[1756520296648,2.9832,4313.8,4313.7,0.251]
[1756520297051,2.9832,4313.8,4313.7,1.1574]
[1756520297354,2.9832,4312.8,4312.7,3.2078]
[1756520297548,2.9832,4312.1,4312.0,6.24]
[1756520297747,2.9832,4312.1,4312.0,6.491]
[1756520298145,2.9832,4312.1,4312.0,3.4588]
[1756520298551,2.9832,4312.1,4312.0,3.2078]
[1756520298751,2.9832,4312.1,4312.0,3.4588]
[1756520299355,2.9832,4312.1,4312.0,3.2078]
[1756520299568,2.9832,4311.4,4311.3,1.8509]
[1756520299851,2.9832,4311.1,4311.0,3.2078]
[1756520300155,2.9832,4311.1,4310.5,3.2078]
[1756520300156,1.2332,4311.1,4310.5,3.2078]
[1756520300458,2.9832,4310.4,4310.3,33.399]
[1756520300656,2.9832,4310.4,4310.3,33.65]
[1756520301744,7.2078,4310.4,4309.3,3.2078]
[1756520301944,1.75,4310.2,4309.5,1.8748]
[1756520302149,1.75,4310.2,4309.6,0.251]
[1756520302344,1.75,4310.2,4309.5,1.8748]
[1756520302546,1.75,4310.2,4309.6,0.251]
[1756520303544,1.75,4310.2,4309.6,1.4084]
[1756520303545,1.2332,4309.7,4309.6,1.4084]
[1756520303750,1.2332,4309.7,4309.6,3.2832]
[1756520303955,1.75,4310.2,4309.6,3.2832]
[1756520304551,2.9832,4309.7,4309.6,3.0322]
[1756520304855,2.9832,4309.7,4309.6,3.2832]
[1756520305351,2.9832,4309.7,4309.6,1.1574]
[1756520305545,1.2332,4309.7,4309.6,0.251]
[1756520306153,2.9832,4309.7,4309.6,0.251]
[1756520306346,2.9832,4309.7,4309.6,1.4084]
[1756520306955,0.1148,4310.3,4309.3,5.0826]
[1756520306956,1.2332,4309.4,4309.3,3.2078]
[1756520307149,2.9832,4309.4,4309.3,0.251]
[1756520307456,2.9832,4309.4,4308.8,5.0826]
[1756520307659,1.75,4309.3,4308.8,3.2078]
[1756520307954,2.9832,4308.9,4308.8,6.24]
[1756520308159,2.9832,4308.9,4308.8,6.491]
[1756520308562,2.9832,4308.9,4308.8,6.24]
[1756520308753,2.9832,4308.9,4308.8,6.491]
[1756520309851,0.1148,4310.3,4308.9,1.8748]
[1756520309852,1.75,4309.6,4308.9,1.8748]
[1756520310052,1.75,4309.6,4309.1,1.8748]
[1756520310256,1.75,4310.0,4309.2,2.1258]
[1756520311060,1.75,4310.0,4309.4,1.8748]
[1756520311258,3.2078,4310.2,4309.3,0.251]
[1756520311259,1.75,4310.1,4309.6,1.8748]
[1756520311456,1.2332,4309.9,4309.8,3.0322]
[1756520311656,2.9832,4309.9,4309.8,3.0322]
[1756520316051,2.9832,4309.9,4309.8,6.24]
[1756520317660,1.8302,4310.3,4309.9,1.7019]
[1756520317861,3.0758,4310.4,4310.3,2.9116]
[1756520318054,3.0758,4310.4,4310.3,1.4607]
[1756520318260,1.8302,4310.3,4309.8,3.2078]
[1756520318558,3.0758,4309.9,4309.8,4.4175]
[1756520318758,1.8302,4310.2,4309.8,4.6685]
[1756520318958,1.8302,4310.2,4309.8,4.4175]
[1756520319157,3.0758,4309.9,4309.8,4.4175]
[1756520319359,3.0758,4309.9,4309.8,4.6685]
[1756520319557,1.8302,4310.4,4309.8,4.6685]
[1756520320166,1.2456,4310.4,4310.3,1.2097]
[1756520320366,3.0758,4310.4,4310.3,3.1616]
[1756520321367,3.0758,4310.4,4310.3,0.25]
[1756520321568,1.8302,4310.3,4309.8,4.9097]
[1756520321770,1.2456,4310.0,4309.9,3.1616]
[1756520322366,1.8302,4310.2,4309.9,1.4597]
[1756520322666,3.0758,4310.2,4310.1,1.2097]
[1756520322868,3.0758,4310.2,4310.1,2.9116]
[1756520323568,1.8302,4310.6,4310.1,1.2097]
[1756520323766,1.8302,4310.8,4310.2,1.9519]
[1756520324666,3.0758,4310.8,4310.7,1.2097]
[1756520324867,3.0758,4310.8,4310.7,1.4597]
[1756520325269,1.2456,4310.9,4310.8,2.9116]
[1756520325465,3.0758,4310.9,4310.8,2.9116]
[1756520325664,3.2078,4311.5,4310.8,2.9116]
[1756520325665,1.8302,4311.4,4310.9,1.7019]
[1756520325871,1.2456,4311.0,4310.9,2.9116]
[1756520326068,1.2456,4311.0,4310.9,3.1616]
[1756520326470,1.8302,4311.2,4310.9,6.3694]
[1756520326672,4.4534,4311.5,4311.4,1.2097]
[1756520326873,4.4534,4311.5,4311.4,3.1616]
[1756520327174,1.8302,4312.5,4311.5,1.7019]
[1756520327367,3.0758,4311.5,4311.4,1.2097]
[1756520327561,1.2456,4311.3,4311.2,3.2078]
[1756520327772,3.0758,4311.3,4311.2,6.3694]
[1756520328170,1.2456,4311.3,4311.2,6.3694]
[1756520328374,1.8302,4311.7,4311.3,1.7019]
[1756520328670,3.0758,4311.7,4311.6,2.9116]
[1756520328975,3.0758,4311.7,4311.6,3.1616]
[1756520329975,3.2078,4312.6,4311.6,3.1616]
[1756520330180,1.8302,4312.5,4311.7,1.7019]
[1756520330384,1.8302,4312.5,4311.9,1.7019]
[1756520330584,3.0758,4312.1,4312.0,3.1616]
[1756520331686,6.2836,4312.6,4312.5,1.2097]
[1756520331889,6.2836,4312.6,4312.5,3.1616]
[1756520332087,6.2836,4312.6,4312.5,2.9116]
[1756520332289,4.4534,4312.6,4312.5,3.1616]
[1756520333483,4.4534,4312.6,4312.5,2.9116]
[1756520333683,6.2836,4312.6,4312.5,2.9116]
[1756520333883,6.2836,4312.6,4312.5,3.1616]
[1756520334589,3.2078,4312.6,4312.5,3.1616]
[1756520335186,3.2078,4313.3,4312.5,1.4597]
[1756520335393,1.8302,4313.2,4312.6,1.7019]
[1756520335686,1.2456,4312.8,4312.7,3.1616]
[1756520336581,3.0758,4312.8,4312.7,3.1616]
[1756520336782,1.2456,4312.8,4312.7,3.1616]
[1756520337389,3.0758,4313.1,4313.0,1.2097]
[1756520337591,3.0758,4313.1,4313.0,3.1616]
[1756520339396,3.0758,4313.1,4313.0,2.9116]
[1756520339590,3.0758,4313.1,4313.0,3.1616]
[1756520339798,3.0758,4313.1,4313.0,0.25]
[1756520340098,3.0758,4313.1,4313.0,1.4597]
[1756520340394,1.22891593,4315.5,4313.0,1.4597]
[1756520340395,3.0758,4313.5,4313.0,1.7019]
[1756520340699,3.0758,4313.2,4313.1,0.25]
[1756520341396,3.0758,4313.2,4313.1,1.4597]
[1756520341698,3.0758,4313.2,4313.1,2.9116]
[1756520341892,1.2456,4312.8,4312.7,4.4175]
[1756520342097,1.2456,4312.9,4312.8,2.9116]
[1756520342500,3.0758,4312.9,4312.8,3.1616]
[1756520342697,1.2456,4312.9,4312.8,3.1616]
[1756520342889,1.8302,4312.8,4312.2,1.7019]
[1756520343089,3.0758,4312.3,4312.2,1.2097]
[1756520343293,3.0758,4312.3,4312.2,1.4597]
[1756520343690,1.8302,4313.3,4312.2,1.9519]
[1756520344497,1.8302,4313.3,4312.6,3.2078]
[1756520344694,1.8302,4313.3,4312.7,1.9519]
[1756520345298,1.2456,4312.8,4312.7,3.1616]
[1756520345895,3.0758,4313.0,4312.9,2.9116]
[1756520346090,3.0758,4313.0,4312.9,3.1616]
[1756520346289,1.8302,4313.3,4313.0,1.7019]
[1756520346494,1.8302,4313.7,4313.2,2.9116]
[1756520346691,1.8302,4314.0,4313.4,1.7019]
[1756520346894,3.2078,4314.1,4313.5,2.9797]
[1756520346895,3.0896,4313.6,4313.5,2.9797]
[1756520347200,3.0577,4313.2,4313.1,6.1399]
[1756520347399,3.0577,4313.2,4313.1,6.3899]
[1756520347796,3.0577,4313.2,4313.1,6.1399]
[1756520347996,3.0577,4313.2,4313.1,6.3899]
[1756520348198,1.844,4314.0,4313.2,1.77]
[1756520348402,1.844,4314.0,4313.3,0.25]
[1756520348599,1.844,4314.0,4313.2,1.77]
[1756520348901,3.0577,4313.3,4313.2,2.9321]
[1756520349102,3.0577,4313.3,4313.2,3.1821]
[1756520349499,3.0577,4313.3,4313.2,0.25]
[1756520349702,3.0577,4313.2,4313.1,3.2078]
[1756520349903,3.0577,4312.5,4312.4,6.1399]
[1756520350092,3.0577,4312.5,4312.4,6.3899]
[1756520350498,3.2078,4313.4,4313.3,1.1621]
[1756520350704,3.0577,4313.4,4313.3,1.4121]
[1756520351004,1.2137,4312.6,4312.2,3.2078]
[1756520351203,1.2137,4312.4,4312.3,0.25]
[1756520351502,3.0577,4312.4,4312.3,3.1821]
[1756520352892,0.25,4313.6,4312.3,1.4121]
[1756520353096,1.844,4313.5,4312.4,1.77]
[1756520353296,1.844,4313.5,4312.5,0.25]
[1756520353502,1.844,4313.5,4312.6,1.77]
[1756520353703,1.844,4313.5,4312.8,1.77]
[1756520353906,3.0577,4313.1,4313.0,6.1399]
[1756520354101,3.0577,4313.1,4313.0,6.3899]
[1756520354302,1.844,4313.5,4313.0,6.3899]
[1756520354502,1.844,4313.8,4313.1,1.77]
[1756520354699,1.844,4313.8,4313.3,1.77]
[1756520354902,3.0577,4313.7,4313.6,1.1621]
[1756520355214,3.0577,4313.7,4313.6,3.1821]
[1756520356100,3.0577,4313.7,4313.0,3.2078]
[1756520356302,3.0577,4313.7,4313.1,2.02]
[1756520356906,3.0577,4313.7,4313.2,0.25]
[1756520357103,3.2078,4313.9,4313.0,3.2078]
[1756520357104,1.2137,4313.1,4313.0,2.9321]
[1756520357308,1.2137,4313.1,4313.0,3.1821]
[1756520357506,3.0577,4313.1,4312.5,3.2078]
[1756520357703,3.2078,4313.9,4312.5,3.2078]
[1756520357704,1.2137,4312.6,4312.5,6.1399]
[1756520358007,1.2137,4312.6,4312.5,6.3899]
[1756520359104,1.2137,4312.6,4312.5,6.1399]
[1756520359411,3.0577,4312.6,4312.5,6.3899]
[1756520360101,1.844,4313.0,4312.5,3.2078]
[1756520360303,3.0577,4313.0,4312.9,2.9321]
[1756520360507,3.0577,4313.0,4312.9,3.1821]
[1756520361913,3.0577,4313.0,4312.9,2.9321]
[1756520362212,3.0577,4313.0,4312.9,3.1821]
[1756520362408,3.0577,4313.0,4312.9,1.1621]
[1756520362713,3.0577,4313.0,4312.9,1.4121]
[1756520362916,1.844,4313.3,4312.9,0.25]
[1756520363102,3.0577,4313.0,4312.9,0.25]
[1756520363707,3.0577,4313.0,4312.9,1.4121]
[1756520364610,1.844,4312.9,4312.5,4.9778]
[1756520364914,3.0577,4312.6,4312.5,4.3699]
[1756520365110,3.0577,4312.6,4312.5,4.6189]
[1756520365514,3.0577,4312.6,4312.5,6.1399]
[1756520365710,3.0577,4312.6,4312.5,3.2078]
[1756520366410,3.0577,4312.6,4312.5,3.4568]
[1756520367014,3.0577,4312.6,4312.5,3.2078]
[1756520367216,3.0577,4312.6,4312.5,3.4568]
[1756520367421,3.0577,4312.6,4312.5,4.6189]
[1756520368409,3.0577,4312.6,4312.5,4.3699]
[1756520368614,3.0577,4312.6,4312.5,4.6189]
[1756520370415,3.0577,4312.6,4312.5,4.3699]
[1756520370618,3.0577,4312.6,4312.5,4.6189]
[1756520370820,3.0577,4312.6,4312.5,6.3889]
[1756520372418,3.2078,4313.4,4312.6,1.77]
[1756520372419,1.844,4313.3,4312.6,1.77]
[1756520372622,1.2137,4312.9,4312.8,2.9321]
[1756520372823,1.2137,4312.9,4312.8,3.1811]
[1756520373121,3.0577,4312.9,4312.8,3.1811]
[1756520373320,1.844,4313.3,4312.9,1.77]
[1756520373518,3.2078,4313.4,4313.0,3.1811]
[1756520373519,3.0577,4313.1,4313.0,3.1811]
[1756520373722,1.844,4313.3,4313.0,0.249]
[1756520373922,3.0577,4313.1,4313.0,3.1811]
[1756520374121,3.2078,4313.4,4313.1,1.77]
[1756520374320,6.2655,4313.4,4313.3,1.1621]
[1756520374624,3.0577,4313.4,4313.3,3.1811]
[1756520374924,3.0577,4313.4,4313.3,0.249]
[1756520375120,3.0577,4313.4,4313.3,3.1811]
[1756520375820,3.0577,4313.4,4313.3,0.249]
[1756520376417,1.2137,4313.1,4312.8,1.77]
[1756520376617,3.0577,4312.9,4312.8,1.77]
[1756520376823,3.0577,4312.9,4312.5,1.77]
[1756520377024,3.0577,4312.9,4312.8,0.249]
[1756520377220,3.0577,4312.9,4312.8,1.4111]
[1756520377422,3.0577,4312.9,4312.8,3.0703]
[1756520377620,1.2137,4312.9,4312.8,6.2781]
[1756520378123,2.9725,4312.9,4312.8,6.2781]
[1756520378326,2.9725,4312.9,4312.8,6.0291]
[1756520378635,2.9725,4312.9,4312.8,4.6189]
[1756520379124,2.9725,4312.9,4312.8,0.249]
[1756520379822,1.2137,4312.9,4312.2,2.0794755]
[1756520380023,2.963,4312.8,4312.7,1.1245]
[1756520380229,2.963,4312.8,4312.7,4.5813]
[1756520380423,2.963,4312.8,4312.7,3.2078]
[1756520380617,2.963,4312.8,4312.7,3.4568]
[1756520382223,2.963,4312.8,4312.7,3.2078]
[1756520382417,2.963,4312.8,4312.7,3.0327]
[1756520382813,2.963,4312.8,4312.4,1.6592]
[1756520383018,2.963,4312.8,4312.5,0.249]
[1756520383425,1.2042,4312.8,4312.5,0.249]
[1756520383623,1.2042,4312.2,4312.1,5.9915]
[1756520383814,1.2042,4312.2,4312.1,6.2405]
[1756520384020,2.963,4312.2,4312.1,6.2405]
[1756520384922,1.2042,4312.2,4312.1,6.2405]
[1756520386729,1.7588,4313.0,4312.2,1.6592]
[1756520387026,1.7588,4313.0,4312.4,1.6592]
[1756520387225,1.2042,4312.6,4312.5,1.3735]
[1756520387426,2.963,4312.6,4312.5,3.0327]
[1756520388424,4.412,4312.6,4312.1,3.2078]
[1756520388629,2.963,4312.2,4312.1,3.2078]
[1756520388829,2.963,4312.2,4312.1,3.4568]
[1756520389233,2.963,4312.2,4312.1,4.5813]
[1756520389528,2.963,4312.2,4312.1,6.2405]
[1756520390525,1.7588,4312.1,4311.7,2.0794755]
[1756520390725,2.963,4311.7,4311.0,2.0794755]
[1756520390924,1.2042,4311.6,4311.5,1.1245]
[1756520391127,1.2042,4311.6,4311.5,3.0327]
[1756520391528,2.963,4311.6,4311.5,3.0327]
[1756520392234,2.963,4311.6,4310.9,1.6592]
[1756520392531,2.963,4311.6,4311.0,0.249]
[1756520392833,2.963,4311.6,4311.1,0.249]
[1756520393225,2.963,4311.6,4311.1,1.9082]
[1756520393529,2.963,4311.6,4311.2,1.6592]
[1756520393935,2.963,4311.6,4311.3,0.249]
[1756520394427,2.963,4311.6,4310.8,1.6592]
[1756520394634,2.963,4311.6,4310.9,0.249]
[1756520394834,2.963,4311.6,4310.8,1.6592]
[1756520395138,2.963,4311.6,4310.9,0.249]
[1756520395438,2.963,4310.7,4310.6,5.9915]
[1756520395637,2.963,4310.7,4310.6,6.2405]
[1756520396736,2.963,4310.7,4310.6,5.9915]
[1756520397036,2.963,4310.7,4310.6,6.2405]
[1756520398038,2.963,4310.7,4310.6,5.9915]
[1756520398343,6.1708,4310.7,4310.6,0.249]
[1756520398835,2.963,4310.7,4310.6,1.3735]
[1756520399036,2.963,4310.7,4309.9,1.6592]
[1756520399037,6.1708,4310.7,4309.9,1.6592]
[1756520399234,1.7588,4310.5,4310.0,1.3735]
[1756520399431,2.963,4310.1,4310.0,2.7837]